bitfinex-derivatives/quotes_ETHF0:USTF0_20260118
["timestamp","ask_amount","ask_price","bid_price","bid_amount"]
[1768765945926,0.94717158,3348.2,3347.4,0.95253272]
[1768765946133,0.00386868,3348.3,3347.4,0.95253272]
[1768765946334,0.94718928,3348.2,3347.2,0.1344687]
[1768765946535,0.00386868,3348.3,3347.3,0.95253272]
[1768765946725,0.94720048,3348.2,3347.3,1.08351238]
[1768765946926,0.00386868,3348.3,3347.3,1.08351238]
[1768765947126,0.9472098,3348.2,3347.3,1.08351238]
[1768765947335,0.00386868,3348.3,3347.3,1.08351238]
[1768765947535,0.94723507,3348.2,3347.3,1.08351238]
[1768765947835,0.00386868,3348.3,3347.3,1.08351238]
[1768765948026,0.94723677,3348.2,3347.3,1.08351238]
[1768765948227,0.00386868,3348.3,3347.3,1.08351238]
[1768765948426,0.94724592,3348.2,3347.3,1.08351238]
[1768765948635,0.00386868,3348.3,3347.3,1.08351238]
[1768765948836,0.94753767,3348.2,3347.3,1.08351238]
[1768765949037,0.00386868,3348.3,3347.3,1.08351238]
[1768765949337,0.94757773,3348.2,3346.9,0.13097966]
[1768765949636,0.95253272,3348.0,3346.9,0.13097966]
[1768765957242,0.95253272,3348.0,3346.8,0.14944]
[1768765960846,0.00386868,3348.3,3346.8,0.14944]
[1768765961047,0.94744687,3348.2,3346.8,0.14944]
[1768765961248,0.94744687,3348.1,3346.8,0.14944]
[1768765961445,0.00386868,3348.3,3346.8,0.14944]
[1768765961446,0.94744687,3348.0,3346.8,0.14944]
[1768765961648,0.01264539,3348.3,3346.8,0.14944]
[1768765961845,0.9474683,3348.2,3346.8,0.14944]
[1768765962146,0.9474683,3348.1,3346.8,0.14944]
[1768765962445,0.9474683,3348.0,3346.8,0.14944]
[1768765962646,0.01264539,3348.3,3346.8,0.14944]
[1768765962846,0.94749414,3348.2,3346.8,0.14944]
[1768765963047,0.94749414,3348.1,3346.8,0.14944]
[1768765963237,0.94749414,3348.0,3346.8,0.14944]
[1768765963539,0.01264539,3348.3,3346.8,0.14944]
[1768765963738,0.9475212,3348.2,3346.8,0.14944]
[1768765963935,0.9475212,3348.1,3346.8,0.14944]
[1768765964237,0.9475212,3348.0,3346.8,0.14944]
[1768765964439,0.01264539,3348.3,3346.8,0.14944]
[1768765964635,0.94754911,3348.2,3346.8,0.14944]
[1768765964834,0.94754911,3348.1,3346.8,0.14944]
[1768765965046,0.94754911,3348.0,3346.8,0.14944]
[1768765965249,0.01264539,3348.3,3346.8,0.14944]
[1768765965441,0.94770637,3348.2,3346.8,0.14944]
[1768765965642,0.94770637,3348.1,3346.8,0.14944]
[1768765965839,0.94770637,3348.0,3346.8,0.14944]
[1768765966144,0.95273094,3347.8,3346.3,0.00308261]
[1768765966344,0.94767044,3347.7,3346.3,0.00308261]
[1768765966547,0.94767044,3347.6,3346.3,0.00308261]
[1768765966736,0.00644916,3347.7,3346.3,0.00308261]
[1768765966940,0.9473694,3347.6,3346.3,0.00308261]
[1768765967141,0.9473694,3347.5,3346.3,0.00308261]
[1768765967342,0.00644916,3347.7,3346.3,0.00308261]
[1768765967640,0.95342162,3347.6,3346.3,0.00308261]
[1768765967945,0.95342162,3347.5,3346.3,0.00308261]
[1768765968148,0.94710909,3347.4,3346.3,0.00308261]
[1768765968350,0.00631253,3347.5,3346.3,0.00308261]
[1768765968549,0.95292295,3347.4,3346.3,0.00308261]
[1768765968855,0.94661044,3347.3,3346.3,0.00308261]
[1768765969252,0.00631251,3347.4,3346.3,0.00308261]
[1768765980060,0.00477839,3347.8,3346.3,0.00308261]
[1768765980263,0.00864707,3348.3,3346.6,0.13810567]
[1768765980560,0.94428374,3348.2,3346.6,0.13810567]
[1768765980761,0.94428374,3348.1,3346.6,0.13810567]
[1768765980957,0.00386868,3348.3,3346.6,0.13810567]
[1768765981148,0.94438162,3348.2,3346.6,0.13810567]
[1768765981348,0.94438162,3348.1,3346.6,0.13810567]
[1768765981553,0.00386868,3348.3,3346.6,0.13810567]
[1768765981757,0.94442688,3348.2,3346.6,0.13810567]
[1768765981964,0.94442688,3348.1,3346.6,0.13810567]
[1768765982159,0.00386868,3348.3,3346.6,0.13810567]
[1768765982365,0.94442711,3348.2,3346.6,0.13810567]
[1768765982659,0.94442711,3348.1,3346.6,0.13810567]
[1768765982860,0.00386868,3348.3,3346.6,0.13810567]
[1768765983159,0.94447595,3348.2,3346.6,0.13810567]
[1768765983362,0.00386868,3348.3,3346.6,0.13810567]
[1768765983363,0.94447595,3348.1,3346.6,0.13810567]
[1768765983553,0.00386868,3348.3,3346.7,0.13810567]
[1768765986557,0.96069534,3348.3,3346.7,0.13810567]
[1768765986971,0.0079644,3348.3,3346.7,0.13810567]
[1768765992869,0.00386868,3348.3,3346.7,0.13810567]
[1768765993672,0.94445039,3348.2,3346.7,0.13810567]
[1768765993968,0.00386868,3348.3,3346.7,0.13810567]
[1768765994169,0.9444502,3348.2,3346.7,0.13810567]
[1768765994370,0.00386868,3348.3,3346.7,0.13810567]
[1768765994562,0.94469936,3348.2,3346.7,0.13810567]
[1768765994763,0.00386868,3348.3,3346.7,0.13810567]
[1768765994959,0.94469968,3348.2,3346.7,0.13810567]
[1768765995161,0.00386868,3348.3,3346.7,0.13810567]
[1768765995366,0.94469963,3348.2,3346.7,0.13810567]
[1768765995565,0.00386868,3348.3,3346.7,0.13810567]
[1768765995767,0.9447016,3348.2,3346.7,0.13810567]
[1768765995970,0.00386868,3348.3,3346.7,0.13810567]
[1768765996170,0.94470407,3348.2,3346.7,0.13810567]
[1768765996465,0.00386868,3348.3,3346.7,0.13810567]
[1768765996667,0.94466546,3348.2,3346.7,0.13810567]
[1768765996866,0.00386868,3348.3,3346.7,0.13810567]
[1768765997067,0.94466768,3348.2,3346.7,0.13810567]
[1768765997268,0.94460556,3348.1,3346.7,0.13810567]
[1768765997467,0.00386868,3348.3,3346.7,0.13810567]
[1768765997670,0.94460087,3348.2,3346.7,0.13810567]
[1768765997864,0.94460087,3348.1,3346.7,0.13810567]
[1768765998067,0.00386868,3348.3,3346.7,0.13810567]
[1768765998268,0.94459956,3348.2,3346.7,0.13810567]
[1768765998468,0.94459956,3348.1,3346.7,0.13810567]
[1768765998671,0.00386868,3348.3,3346.7,0.13810567]
[1768765998878,0.94486793,3348.2,3346.7,0.13810567]
[1768765999068,0.94486793,3348.1,3346.7,0.13810567]
[1768765999267,0.00386868,3348.3,3346.7,0.13810567]
[1768765999474,0.94495477,3348.2,3346.7,0.13810567]
[1768765999777,0.94495477,3348.1,3346.7,0.13810567]
[1768765999974,0.00386868,3348.3,3346.7,0.13810567]
[1768766000175,0.94495551,3348.2,3346.7,0.13810567]
[1768766000367,0.94495551,3348.1,3346.7,0.13810567]
[1768766000563,0.94495551,3348.0,3346.7,0.13810567]
[1768766000776,0.00386868,3348.3,3346.7,0.13810567]
[1768766000976,0.00377006,3348.1,3346.6,0.14945]
[1768766001176,0.94854013,3348.0,3346.6,0.14945]
[1768766001473,0.0034849,3348.0,3346.6,0.14945]
[1768766002966,0.95273094,3347.8,3346.3,0.14118828]
[1768766003168,0.9555734,3347.8,3346.3,0.00308261]
[1768766003876,0.00284246,3347.8,3346.3,0.00308261]
[1768766004478,0.94491242,3347.7,3346.3,0.00308261]
[1768766004679,0.94491242,3347.6,3346.3,0.00308261]
[1768766004879,0.00284246,3347.8,3346.3,0.00308261]
[1768766005079,0.94478837,3347.7,3346.3,0.00308261]
[1768766005382,0.94478837,3347.6,3346.3,0.00308261]
[1768766005678,0.00284246,3347.8,3346.3,0.00308261]
[1768766005869,0.94482433,3347.7,3346.3,0.00308261]
[1768766006070,0.94482433,3347.6,3346.3,0.00308261]
[1768766006379,0.00284246,3347.8,3346.3,0.00308261]
[1768766006577,0.94486114,3347.7,3346.3,0.00308261]
[1768766006777,0.94486114,3347.6,3346.3,0.00308261]
[1768766006983,0.00284246,3347.8,3346.3,0.00308261]
[1768766007283,0.94486107,3347.7,3346.3,0.00308261]
[1768766007473,0.94486107,3347.6,3346.3,0.00308261]
[1768766007673,0.00284246,3347.8,3346.3,0.00308261]
[1768766007978,0.94490585,3347.7,3346.3,0.00308261]
[1768766008283,0.94490585,3347.6,3346.3,0.00308261]
[1768766008470,0.00284246,3347.8,3346.3,0.00308261]
[1768766008668,0.94494722,3347.7,3346.3,0.00308261]
[1768766008878,0.94494722,3347.6,3346.3,0.00308261]
[1768766009078,0.00284246,3347.8,3346.3,0.00308261]
[1768766009279,0.94494722,3347.7,3346.3,0.00308261]
[1768766009474,0.94494722,3347.6,3346.3,0.00308261]
[1768766009675,0.00284246,3347.8,3346.3,0.00308261]
[1768766009883,0.94495201,3347.7,3346.3,0.00308261]
[1768766010181,0.94495201,3347.6,3346.3,0.00308261]
[1768766010383,0.00284246,3347.8,3346.3,0.00308261]
[1768766010689,0.94487374,3347.7,3346.3,0.00308261]
[1768766010981,0.94487374,3347.6,3346.3,0.00308261]
[1768766011185,0.94487374,3347.5,3346.3,0.00308261]
[1768766011389,0.00284246,3347.8,3346.3,0.00308261]
[1768766011581,0.94476966,3347.7,3346.3,0.00308261]
[1768766011782,0.94476966,3347.6,3346.3,0.00308261]
[1768766011987,0.94476966,3347.5,3346.3,0.00308261]
[1768766012177,0.00284246,3347.8,3346.3,0.00308261]
[1768766012378,0.94476972,3347.7,3346.3,0.00308261]
[1768766012578,0.94476972,3347.6,3346.3,0.00308261]
[1768766012781,0.94476972,3347.5,3346.3,0.00308261]
[1768766012982,0.00284246,3347.8,3346.3,0.00308261]
[1768766013185,0.9446685,3347.7,3346.3,0.00308261]
[1768766013389,0.9446685,3347.6,3346.3,0.00308261]
[1768766013687,0.9446685,3347.5,3346.3,0.00308261]
[1768766013987,0.00284246,3347.8,3346.3,0.00308261]
[1768766014185,0.94454702,3347.7,3346.3,0.00308261]
[1768766014380,0.94454702,3347.6,3346.3,0.00308261]
[1768766014581,0.94454702,3347.5,3346.3,0.00308261]
[1768766014787,0.95273094,3347.2,3346.3,0.00308261]
[1768766014974,0.94441848,3347.1,3346.3,0.00308261]
[1768766015179,0.00170163,3347.5,3346.3,0.00308261]
[1768766015380,0.94441614,3347.4,3346.3,0.00308261]
[1768766015578,0.94441614,3347.3,3346.3,0.00308261]
[1768766015789,0.94441614,3347.2,3346.3,0.00308261]
[1768766015990,0.00170163,3347.5,3346.3,0.00308261]
[1768766016188,0.9442794,3347.4,3346.3,0.00308261]
[1768766016388,0.9442794,3347.3,3346.3,0.00308261]
[1768766016686,0.9442794,3347.2,3346.3,0.00308261]
[1768766016884,2.63473094,3347.7,3346.3,0.00308261]
[1768766017083,0.94420436,3347.6,3346.3,0.00308261]
[1768766017283,0.94420436,3347.5,3346.3,0.00308261]
[1768766017490,0.94420436,3347.4,3346.3,0.00308261]
[1768766017689,0.94420436,3347.3,3346.3,0.00308261]
[1768766017891,0.94420436,3347.2,3346.3,0.00308261]
[1768766018189,2.63473094,3347.7,3346.3,0.00308261]
[1768766018384,0.94408582,3347.6,3346.3,0.00308261]
[1768766018582,0.94408582,3347.5,3346.3,0.00308261]
[1768766018784,0.94408582,3347.4,3346.3,0.00308261]
[1768766018991,0.94408582,3347.3,3346.3,0.00308261]
[1768766019192,0.94408582,3347.2,3346.3,0.00308261]
[1768766019491,2.63473094,3347.7,3346.3,0.00308261]
[1768766019690,0.94394564,3347.6,3346.3,0.00308261]
[1768766019877,0.94394564,3347.5,3346.3,0.00308261]
[1768766020078,0.94394564,3347.4,3346.3,0.00308261]
[1768766020279,0.94394564,3347.3,3346.3,0.00308261]
[1768766020482,0.94394564,3347.2,3346.3,0.00308261]
[1768766020684,2.63473094,3347.7,3346.3,0.00308261]
[1768766020988,0.94392036,3347.6,3346.3,0.00308261]
[1768766021186,0.94392036,3347.5,3346.3,0.00308261]
[1768766021387,0.94392036,3347.4,3346.3,0.00308261]
[1768766021589,0.94392036,3347.3,3346.3,0.00308261]
[1768766021795,0.94392036,3347.2,3346.3,0.00308261]
[1768766021988,2.63473094,3347.7,3346.3,0.00308261]
[1768766022189,0.94392576,3347.6,3346.3,0.00308261]
[1768766022390,0.94392576,3347.5,3346.3,0.00308261]
[1768766022590,0.94392576,3347.4,3346.3,0.00308261]
[1768766022794,0.94392576,3347.3,3346.3,0.00308261]
[1768766022994,0.94392576,3347.2,3346.3,0.00308261]
[1768766028003,0.94392576,3347.2,3346.4,0.13351346]
[1768766028200,0.95314893,3347.6,3346.4,0.13351346]
[1768766028400,0.94480402,3347.5,3346.4,0.13351346]
[1768766028590,0.94480402,3347.4,3346.4,0.13351346]
[1768766028794,0.94480402,3347.3,3346.4,0.13351346]
[1768766029106,0.95314893,3347.6,3346.4,0.13351346]
[1768766029397,0.94480319,3347.5,3346.4,0.13351346]
[1768766029601,0.94480319,3347.4,3346.4,0.13351346]
[1768766029904,0.94480319,3347.3,3346.4,0.13351346]
[1768766030105,0.1494,3347.8,3346.4,0.13351346]
[1768766032417,0.95314893,3347.6,3346.4,0.13351346]
[1768766042028,0.94693669,3347.5,3346.4,0.13351346]
[1768766042230,0.95314893,3347.3,3346.3,0.00308261]
[1768766042419,0.95314893,3347.0,3346.3,0.00308261]
[1768766042619,0.95314893,3347.2,3346.3,0.00308261]
[1768766044229,0.95314893,3347.0,3346.3,0.00308261]
[1768766045021,0.95314893,3347.4,3346.3,0.00308261]
[1768766045229,0.94731624,3347.3,3346.3,0.95623154]
[1768766045426,0.94731624,3347.2,3346.3,0.95623154]
[1768766045626,0.94731624,3347.1,3346.3,0.95623154]
[1768766045824,0.95314893,3347.6,3346.3,0.95623154]
[1768766046024,0.94735745,3347.5,3346.3,0.95623154]
[1768766046332,0.95314893,3347.6,3346.3,0.95623154]
[1768766046333,0.94735745,3347.4,3346.3,0.95623154]
[1768766046536,0.94735745,3347.3,3346.3,0.95623154]
[1768766046725,0.94735745,3347.2,3346.3,0.95623154]
[1768766046926,0.94735745,3347.1,3346.3,0.95623154]
[1768766047134,0.95314893,3347.6,3346.3,1.09772535]
[1768766047335,0.94738947,3347.5,3346.3,1.09772535]
[1768766047527,0.94738947,3347.4,3346.3,1.09772535]
[1768766047728,0.94738947,3347.3,3346.3,1.09772535]
[1768766047921,0.94738947,3347.2,3346.3,1.09772535]
[1768766048122,0.95314893,3347.6,3346.3,1.09772535]
[1768766048123,0.94738947,3347.1,3346.3,1.09772535]
[1768766048331,0.95314893,3347.6,3346.3,1.09772535]
[1768766048530,0.94744103,3347.5,3346.3,1.09772535]
[1768766048734,0.94744103,3347.4,3346.3,1.09772535]
[1768766048928,0.94744103,3347.3,3346.3,1.09772535]
[1768766049128,0.94744103,3347.2,3346.3,1.09772535]
[1768766049329,0.94744103,3347.1,3346.3,1.09772535]
[1768766049528,0.95314893,3347.6,3346.3,1.09772535]
[1768766049724,0.94747189,3347.5,3346.3,1.09772535]
[1768766049938,0.94747189,3347.4,3346.3,0.00308261]
[1768766050241,0.94747189,3347.3,3346.3,0.00308261]
[1768766050538,0.94747189,3347.2,3346.3,0.00308261]
[1768766050738,0.95314893,3347.5,3346.3,0.00308261]
[1768766050927,0.9475075,3347.4,3346.3,0.00308261]
[1768766051130,0.9475075,3347.3,3346.3,0.00308261]
[1768766051430,0.9475075,3347.2,3346.3,0.00308261]
[1768766051629,0.95314893,3347.5,3346.3,0.00308261]
[1768766051829,0.94754582,3347.4,3346.3,0.00308261]
[1768766052026,0.94754582,3347.3,3346.3,0.00308261]
[1768766052231,0.94754582,3347.2,3346.3,0.00308261]
[1768766052432,0.95314893,3347.5,3346.3,0.00308261]
[1768766052631,0.94758946,3347.4,3346.3,0.00308261]
[1768766052839,0.94758946,3347.3,3346.3,0.00308261]
[1768766053037,0.94758946,3347.2,3346.3,0.00308261]
[1768766053239,0.95314893,3347.5,3346.3,0.00308261]
[1768766053439,0.94763941,3347.4,3346.3,0.00308261]
[1768766053640,0.94763941,3347.3,3346.3,0.00308261]
[1768766053942,0.94763941,3347.2,3346.3,0.00308261]
[1768766054145,0.95314893,3347.5,3346.3,0.00308261]
[1768766054443,0.94765211,3347.4,3346.3,0.00308261]
[1768766054629,0.94765211,3347.3,3346.3,0.00308261]
[1768766054827,0.94765211,3347.2,3346.3,0.00308261]
[1768766055031,0.95314893,3347.5,3346.3,0.00308261]
[1768766055246,0.9476973,3347.4,3346.3,0.00308261]
[1768766055543,0.9476973,3347.3,3346.3,0.00308261]
[1768766055736,0.9476973,3347.2,3346.3,0.00308261]
[1768766056036,0.9476973,3347.1,3346.3,0.00308261]
[1768766056235,0.95314893,3347.5,3346.3,0.00308261]
[1768766060647,0.95314893,3347.2,3346.3,0.00308261]
[1768766068154,0.94401466,3347.1,3346.3,0.00308261]
[1768766068358,0.94401466,3347.0,3346.3,0.00308261]
[1768766068544,0.95314893,3346.8,3346.3,0.00308261]
[1768766071952,0.95314893,3346.8,3345.7,0.14949]
[1768766071953,1.74683639,3347.6,3345.7,1.08327779]
[1768766072156,0.943859,3347.5,3346.1,0.95314893]
[1768766072350,0.943859,3347.4,3346.1,0.95314893]
[1768766072548,0.943859,3347.3,3345.8,0.13012886]
[1768766072747,0.943859,3347.2,3346.0,1.08327779]
[1768766072943,0.943859,3347.1,3346.2,1.08327779]
[1768766073150,1.681,3347.8,3346.5,0.95314893]
[1768766073455,1.681,3347.8,3346.3,0.13012886]
[1768766073456,0.94398149,3347.7,3346.6,0.95314893]
[1768766073767,0.94398149,3347.6,3346.6,1.08327779]
[1768766073950,0.95314893,3348.2,3346.7,0.13012886]
[1768766074253,0.94412316,3348.1,3346.7,0.13012886]
[1768766074458,0.94412316,3348.0,3346.7,0.13012886]
[1768766074757,0.94412316,3347.9,3346.7,0.13012886]
[1768766074956,0.94412316,3347.8,3346.7,0.13012886]
[1768766075151,0.94412316,3347.7,3346.7,0.13012886]
[1768766075353,0.95314893,3348.2,3346.7,0.13012886]
[1768766075550,0.9435881,3348.1,3346.9,0.95314893]
[1768766075751,0.9435881,3348.0,3346.9,0.95314893]
[1768766075952,0.9435881,3347.9,3346.9,0.95314893]
[1768766076249,0.9435881,3347.8,3346.9,0.95314893]
[1768766076446,0.00386868,3348.3,3346.9,0.95314893]
[1768766076653,0.94334082,3348.2,3346.9,0.95314893]
[1768766076851,0.94334082,3348.1,3346.9,0.95314893]
[1768766077052,0.94334082,3348.0,3346.9,0.95314893]
[1768766077251,0.94334082,3347.9,3346.9,0.95314893]
[1768766077455,0.94334082,3347.8,3346.9,0.95314893]
[1768766077657,0.00386868,3348.3,3346.9,0.95314893]
[1768766077957,0.94311021,3348.2,3346.9,0.95314893]
[1768766078154,0.94311021,3348.1,3346.9,1.09192373]
[1768766078351,0.94311021,3348.0,3347.2,1.09192373]
[1768766078555,0.00386868,3348.3,3347.2,1.09192373]
[1768766079152,0.00386868,3348.3,3347.3,0.1387748]
[1768766082464,0.00386868,3348.3,3347.5,0.95314893]
[1768766082866,0.00386868,3348.3,3347.3,0.1387748]
[1768766098478,1.04378847,3349.2,3347.3,0.1387748]
[1768766098677,0.93749966,3349.1,3347.3,0.1387748]
[1768766098878,0.93749966,3349.0,3347.3,0.1387748]
[1768766099175,0.93749966,3348.9,3347.3,0.1387748]
[1768766099362,0.93749966,3348.8,3347.3,0.1387748]
[1768766099562,0.93749966,3348.7,3347.3,0.1387748]
[1768766101273,0.00257402,3348.8,3347.3,0.1387748]
[1768766101675,0.00257402,3348.8,3347.6,0.13338757]
[1768766101873,0.00257402,3348.8,3348.0,0.13338757]
[1768766102076,1.04378847,3349.2,3348.0,0.13338757]
[1768766102966,1.04649781,3349.2,3348.0,0.13338757]
[1768766103167,1.99874636,3349.2,3347.1,0.13338757]
[1768766103389,0.93978228,3349.1,3347.1,0.13338757]
[1768766103690,0.93978228,3349.0,3347.1,0.13338757]
[1768766103890,0.93978228,3348.9,3347.4,0.13338757]
[1768766104091,1.04649781,3349.2,3347.4,0.13338757]
[1768766104291,0.93963478,3349.1,3347.4,0.13338757]
[1768766104491,0.93963478,3349.0,3347.4,0.13338757]
[1768766104789,0.93963478,3348.9,3347.4,0.13338757]
[1768766104994,0.93963478,3348.8,3347.4,0.13338757]
[1768766105196,1.04649781,3349.2,3347.4,0.13338757]
[1768766105396,0.93995185,3349.1,3347.4,0.13338757]
[1768766105695,0.93995185,3349.0,3347.4,0.13338757]
[1768766105888,0.93995185,3348.9,3347.4,0.13338757]
[1768766106087,0.93995185,3348.8,3347.4,0.13338757]
[1768766106288,0.93995185,3348.7,3347.4,0.13338757]
[1768766106487,1.99874636,3349.2,3347.4,0.13338757]
[1768766106692,0.94014184,3349.1,3347.4,0.13338757]
[1768766106891,0.94014184,3349.0,3347.4,0.13338757]
[1768766107096,0.94014184,3348.9,3347.4,0.13338757]
[1768766107293,0.94014184,3348.8,3347.4,0.13338757]
[1768766107493,0.94014184,3348.7,3347.4,0.13338757]
[1768766107699,1.99874636,3349.2,3347.4,0.13338757]
[1768766107997,0.94041741,3349.1,3347.4,0.13338757]
[1768766108196,0.94041741,3349.0,3347.4,0.13338757]
[1768766108399,0.94041741,3348.9,3347.4,0.13338757]
[1768766108593,0.94041741,3348.8,3347.4,0.13338757]
[1768766108795,1.99874636,3349.2,3347.4,0.13338757]
[1768766108796,0.94041741,3348.7,3347.4,0.13338757]
[1768766109002,0.94041741,3348.6,3347.4,0.13338757]
[1768766109199,0.95224855,3348.3,3347.0,0.13338757]
[1768766109493,0.94041741,3348.2,3347.0,0.13338757]
[1768766109697,2.54967494,3349.0,3347.0,0.13338757]
[1768766109888,0.94054253,3348.9,3347.0,0.13338757]
[1768766110092,0.94054253,3348.8,3347.0,0.13338757]
[1768766110292,0.94054253,3348.7,3347.0,0.13338757]
[1768766110492,0.94054253,3348.6,3347.0,0.13338757]
[1768766110794,0.94054253,3348.5,3347.0,0.13338757]
[1768766110999,0.94054253,3348.4,3347.0,0.13338757]
[1768766111201,0.94054253,3348.3,3347.0,0.13338757]
[1768766111402,1.74675639,3349.4,3347.5,0.13338757]
[1768766111603,0.94060329,3349.1,3347.5,0.13338757]
[1768766111804,1.74675639,3349.4,3347.5,0.13338757]
[1768766111805,0.94060329,3349.0,3347.5,0.13338757]
[1768766111997,0.94060329,3348.9,3347.5,0.13338757]
[1768766112304,0.94060329,3348.8,3347.5,0.13338757]
[1768766112501,0.94060329,3348.7,3347.5,0.13338757]
[1768766112696,0.94060329,3348.6,3347.5,0.13338757]
[1768766112892,1.74675639,3349.4,3347.5,0.13338757]
[1768766113096,0.94061153,3349.1,3347.1,0.13338757]
[1768766113304,2.53803792,3349.1,3347.1,0.13338757]
[1768766115209,0.940599,3349.0,3347.1,0.13338757]
[1768766115406,0.940599,3348.9,3347.1,0.13338757]
[1768766115603,0.940599,3348.8,3347.1,0.13338757]
[1768766115803,0.940599,3348.7,3347.1,0.13338757]
[1768766116003,0.940599,3348.6,3347.1,0.13338757]
[1768766116203,1.59742639,3349.1,3347.1,0.13338757]
[1768766116509,2.53803445,3349.1,3347.1,0.13338757]
[1768766120408,0.95224855,3348.8,3347.1,0.13338757]
[1768766120616,0.94060806,3348.7,3347.1,0.13338757]
[1768766120805,0.94060806,3348.6,3347.1,0.13338757]
[1768766121001,0.94060806,3348.5,3347.1,0.13338757]
[1768766121203,0.94060806,3348.4,3347.1,0.13338757]
[1768766121404,0.94060806,3348.3,3346.4,0.13338757]
[1768766121614,0.94060806,3348.2,3346.4,0.13338757]
[1768766121799,0.95224855,3348.4,3346.4,0.13338757]
[1768766122004,0.94040901,3348.3,3346.4,0.13338757]
[1768766122310,0.94040901,3348.2,3346.4,0.13338757]
[1768766122505,2.54967494,3348.8,3346.4,0.13338757]
[1768766122706,0.94032388,3348.7,3346.4,0.13338757]
[1768766123005,0.94032388,3348.6,3347.6,0.13714209]
[1768766123206,0.95224855,3349.0,3346.3,0.95224855]
[1768766123406,0.94047156,3348.9,3346.6,0.13714209]
[1768766123607,0.94047156,3348.8,3347.0,0.13714209]
[1768766123908,0.94047156,3348.7,3347.0,0.13714209]
[1768766124109,0.95224855,3349.0,3347.0,0.13714209]
[1768766124407,0.95224855,3348.6,3347.0,0.28657209]
[1768766124602,0.94042795,3348.5,3347.0,0.28657209]
[1768766124803,0.95224855,3348.6,3347.0,0.28657209]
[1768766125009,0.93826693,3348.5,3347.0,0.28657209]
[1768766125204,0.95224855,3348.6,3347.0,0.28657209]
[1768766125405,0.9382625,3348.5,3347.0,0.28657209]
[1768766125606,0.95224855,3348.6,3347.0,0.28657209]
[1768766125803,0.93826285,3348.5,3347.0,0.28657209]
[1768766126004,0.95224855,3348.6,3347.0,0.28657209]
[1768766126205,0.93826186,3348.5,3347.0,0.28657209]
[1768766126502,0.95224855,3348.6,3347.0,0.28657209]
[1768766126705,0.93826088,3348.5,3347.0,0.28657209]
[1768766126911,0.95224855,3348.6,3347.0,0.28657209]
[1768766127113,0.9382624,3348.5,3347.0,0.28657209]
[1768766127411,0.95224855,3348.6,3347.0,0.28657209]
[1768766127612,0.93826093,3348.5,3347.0,0.28657209]
[1768766127809,0.95224855,3348.6,3347.0,0.28657209]
[1768766128009,0.93825955,3348.5,3347.0,0.28657209]
[1768766128210,0.95224855,3348.6,3347.0,0.28657209]
[1768766128403,0.93819856,3348.5,3347.0,0.28657209]
[1768766128603,0.95224855,3348.6,3347.0,0.28657209]
[1768766128803,0.93819864,3348.5,3347.0,0.28657209]
[1768766129103,0.95224855,3348.6,3347.0,0.28657209]
[1768766129305,0.93813664,3348.5,3347.0,0.28657209]
[1768766129602,0.95224855,3348.6,3347.0,0.28657209]
[1768766129803,0.93813652,3348.5,3347.0,0.28657209]
[1768766130111,0.95224855,3348.6,3347.0,0.28657209]
[1768766130315,0.9381364,3348.5,3347.0,0.28657209]
[1768766130515,0.95224855,3348.6,3347.0,0.28657209]
[1768766130810,0.93816459,3348.5,3347.0,0.28657209]
[1768766130998,0.95224855,3348.6,3347.0,0.28657209]
[1768766131203,0.93816397,3348.5,3347.0,0.28657209]
[1768766131402,0.95224855,3348.6,3347.0,0.28657209]
[1768766131600,0.93817186,3348.5,3347.0,0.28657209]
[1768766131811,0.95224855,3348.6,3347.0,0.28657209]
[1768766132112,0.9381719,3348.5,3347.0,0.28657209]
[1768766132311,0.95224855,3348.6,3347.0,0.28657209]
[1768766132514,0.93843492,3348.5,3347.0,0.28657209]
[1768766132815,0.95224855,3348.6,3347.0,0.28657209]
[1768766133012,0.93843485,3348.5,3347.0,0.28657209]
[1768766133305,0.93843485,3348.4,3347.0,0.28657209]
[1768766133512,2.54967494,3349.0,3347.0,0.28657209]
[1768766133702,0.93855122,3348.9,3347.0,0.28657209]
[1768766133906,0.93855122,3348.8,3347.0,0.28657209]
[1768766134101,0.93855122,3348.7,3347.0,0.28657209]
[1768766134406,0.93855122,3348.6,3347.0,0.28657209]
[1768766134606,0.93855122,3348.5,3347.0,0.28657209]
[1768766134807,0.93855122,3348.4,3347.0,0.28657209]
[1768766135008,1.59742639,3348.9,3347.0,0.28657209]
[1768766135207,2.53603365,3348.9,3347.0,0.28657209]
[1768766138812,0.95224855,3348.6,3347.0,0.14943]
[1768766139012,0.93860726,3348.5,3347.0,0.14943]
[1768766143925,0.93860726,3348.5,3346.6,0.13170984]
[1768766144922,0.95275584,3348.0,3346.7,0.13170984]
[1768766145122,0.46702793,3348.0,3346.7,0.13170984]
[1768766145926,0.95275584,3347.3,3346.3,0.13170984]
[1768766147121,0.95275584,3347.3,3346.0,0.9555487]
[1768766147122,0.95275584,3347.0,3346.0,0.00279286]
[1768766147710,0.95275584,3347.4,3346.0,0.00279286]
[1768766147915,0.93713547,3347.3,3346.0,0.00279286]
[1768766148114,0.95275584,3347.4,3346.0,0.00279286]
[1768766150018,0.95275584,3346.9,3346.0,0.00279286]
[1768766151719,0.95275584,3346.7,3346.0,0.00279286]
[1768766151925,0.95627734,3346.7,3346.0,0.00279286]
[1768766153526,0.0035215,3346.7,3346.0,0.00279286]
[1768766171634,1.74683639,3347.6,3346.4,0.95275584]
[1768766171831,1.88838385,3347.5,3346.1,1.09497454]
[1768766172032,0.95275584,3347.3,3346.1,0.1422187]
[1768766172232,0.93605674,3347.2,3346.1,0.1422187]
[1768766172432,0.95275584,3347.3,3346.1,0.1422187]
[1768766172632,0.95275584,3347.3,3346.0,0.00279286]
[1768766172633,0.95275584,3346.6,3346.0,0.00279286]
[1768766173031,0.95275584,3346.8,3346.0,0.00279286]
[1768766174735,0.95275584,3347.2,3346.0,0.00279286]
[1768766175039,0.93717753,3347.1,3346.0,0.00279286]
[1768766175233,0.93717753,3347.0,3346.0,0.00279286]
[1768766175434,0.93815161,3346.9,3346.0,0.00279286]
[1768766175744,0.93815161,3346.8,3346.0,0.00279286]
[1768766175944,0.95275584,3347.2,3346.0,0.00279286]
[1768766176132,0.93815149,3347.1,3346.0,0.00279286]
[1768766176443,0.93815149,3347.0,3346.0,0.00279286]
[1768766176738,0.93815149,3346.9,3346.0,0.00279286]
[1768766176944,0.93815149,3346.8,3346.0,0.00279286]
[1768766177137,0.95275584,3347.2,3346.0,0.00279286]
[1768766177335,0.93875612,3347.1,3346.0,0.00279286]
[1768766177535,0.93875612,3347.0,3346.0,0.00279286]
[1768766177733,0.93875612,3346.9,3346.0,0.00279286]
[1768766177937,0.93875612,3346.8,3346.0,0.00279286]
[1768766178141,0.95275584,3347.2,3346.0,0.00279286]
[1768766178338,0.93895413,3347.1,3346.0,0.00279286]
[1768766178533,0.93895413,3347.0,3346.0,0.00279286]
[1768766178741,0.93895413,3346.9,3346.0,0.00279286]
[1768766178942,0.93895413,3346.8,3346.0,0.00279286]
[1768766179141,0.95275584,3347.2,3346.0,0.00279286]
[1768766179334,0.93912017,3347.1,3346.0,0.00279286]
[1768766179535,0.93912017,3347.0,3346.0,0.00279286]
[1768766179736,0.93912017,3346.9,3346.0,0.00279286]